[Event "44th Chess Olympiad Open 2022"]
[Site "Chennai"]
[Date "2022.08.01"]
[Round "4.69"]
[White "Mdoe, Yusuf"]
[Black "Zilleruelo Irizarry, Diego"]
[Result "1/2-1/2"]
[WhiteElo "1722"]
[BlackElo "2081"]
[Annotator "NA RC"]
[PlyCount "127"]
[EventDate "2022.??.??"]
[TimeControl "60"]

1. d4 {[%emt 0:00:08]} d5 {[%emt 0:00:05]} 2. c4 {[%emt 0:00:14]} e6 {[%emt 0:
00:00]} 3. Nf3 {[%emt 0:00:36]} Nf6 {[%emt 0:00:07]} 4. Nc3 {[%emt 0:00:31]} a6
{[%emt 0:00:14]} 5. e3 {[%emt 0:01:12]} dxc4 {[%emt 0:02:20]} 6. Bxc4 {[%emt 0:
00:00]} b5 {[%emt 0:00:14]} 7. Bd3 {[%emt 0:00:12]} c5 {[%emt 0:00:00]} 8. dxc5
{[%emt 0:00:44]} Bxc5 {[%emt 0:00:00]} 9. a3 {[%emt 0:00:42]} Qc7 {[%emt 0:00:
00]} 10. Ne4 {[%emt 0:04:02]} Be7 {[%emt 0:03:46]} 11. Bd2 {[%emt 0:00:41]}
Nbd7 {[%emt 0:02:27]} 12. Rc1 {[%emt 0:01:21]} Qb6 {[%emt 0:00:10]} 13. Bc3 {
[%emt 0:04:09]} Bb7 {[%emt 0:02:21]} 14. Nxf6+ {[%emt 0:01:33]} Nxf6 {[%emt 0:
00:00]} 15. O-O {[%emt 0:01:20]} O-O {[%emt 0:01:11]} 16. Qe2 {[%emt 0:02:55]}
Ne4 {[%emt 0:20:56]} 17. Bd4 {[%emt 0:01:22]} Qa5 {[%emt 0:03:20]} 18. Ne5 {
[%emt 0:04:10]} Rac8 {[%emt 0:25:31]} 19. Rxc8 {[%emt 0:03:07]} Rxc8 {[%emt 0:
00:00]} 20. Nxf7 {[%emt 0:01:52]} Kxf7 {[%emt 0:15:40]} 21. Qf3+ {[%emt 0:00:
00]} Bf6 {[%emt 0:00:34]} 22. Bxe4 {[%emt 0:01:18]} Bxe4 {[%emt 0:00:03]} 23.
Qxe4 {[%emt 0:01:04]} Bxd4 {[%emt 0:01:28]} 24. exd4 {[%emt 0:02:20]} g6 {
[%emt 0:02:13]} 25. h4 {[%emt 0:01:21]} Qb6 {[%emt 0:00:51]} 26. h5 {[%emt 0:
00:00]} Rd8 {[%emt 0:00:20]} 27. Rd1 {[%emt 0:00:24]} Rd5 {[%emt 0:00:05]} 28.
g4 {[%emt 0:03:43]} Qd8 {[%emt 0:03:53]} 29. Kg2 {[%emt 0:09:58]} e5 {[%emt 0:
00:00]} 30. Qf3+ {[%emt 0:11:37]} Kg7 {[%emt 0:00:20]} 31. hxg6 {[%emt 0:04:10]
} hxg6 {[%emt 0:00:05]} 32. Rh1 {[%emt 0:01:02]} exd4 {[%emt 0:02:56]} 33. Qh3
{[%emt 0:00:18]} d3 {[%emt 0:08:12]} 34. f4 {[%emt 0:01:31]} d2 {[%emt 0:02:03]
} 35. Qh7+ {[%emt 0:00:51]} Kf6 {[%emt 0:00:04]} 36. Qh4+ {[%emt 0:03:49]} Ke6
{[%emt 0:01:31]} 37. f5+ {[%emt 0:02:03]} gxf5 {[%emt 0:00:29]} 38. gxf5+ {
[%emt 0:05:37]} Kd7 {[%emt 0:00:01]} 39. Qxd8+ {[%emt 0:01:14]} Kxd8 {[%emt 0:
00:00]} 40. Rd1 {[%emt 0:00:32]} Rxf5 {[%emt 0:01:25]} 41. Rxd2+ {[%emt 0:00:
00]} Kc7 {[%emt 0:30:04]} 42. b4 {[%emt 0:01:16]} Rf6 {[%emt 0:01:05]} 43. Rd3
{[%emt 0:01:45]} Kc6 {[%emt 0:00:00]} 44. Kg3 {[%emt 0:00:00]} Rd6 {[%emt 0:00:
00]} 45. Rc3+ {[%emt 0:00:00]} Kd5 {[%emt 0:00:00]} 46. Rd3+ {[%emt 0:00:00]}
Ke5 {[%emt 0:00:00]} 47. Rc3 {[%emt 0:00:00]} Kd4 {[%emt 0:00:00]} 48. Rc8 {
[%emt 0:00:00]} Ke3 {[%emt 0:00:00]} 49. Rc5 {[%emt 0:04:16]} Rd3 {[%emt 0:00:
00]} 50. a4 {[%emt 0:02:41]} bxa4 {[%emt 0:00:03]} 51. Ra5 {[%emt 0:00:37]} a3
{[%emt 0:00:00]} 52. Rxa6 {[%emt 0:00:10]} Rb3 {[%emt 0:00:00]} 53. b5 {
[%emt 0:00:08]} Kd2+ {[%emt 0:03:24]} 54. Kf4 {[%emt 0:00:13]} Kc2 {[%emt 0:00:
00]} 55. b6 {[%emt 0:01:10]} Kb2 {[%emt 0:01:23]} 56. Ke5 {[%emt 0:00:31]} Rd3
{[%emt 0:02:02]} 57. b7 {[%emt 0:00:21]} Rb3 {[%emt 0:00:04]} 58. Ra7 {[%emt 0:
00:00]} Rb6 {[%emt 0:01:50]} 59. Kd5 {[%emt 0:00:08]} a2 {[%emt 0:00:02]} 60.
Kc5 {[%emt 0:02:31]} Rb3 {[%emt 0:00:27]} 61. Kc6 {[%emt 0:02:21]} a1=Q {
[%emt 0:01:59]} 62. Rxa1 {[%emt 0:00:25]} Kxa1 {[%emt 0:00:00]} 63. Kc7 {
[%emt 0:00:03]} Rxb7+ {[%emt 0:00:00]} 64. Kxb7 {[%emt 0:00:04]} 1/2-1/2

[Event "44th Chess Olympiad Open 2022"]
[Site "Chennai"]
[Date "2022.08.01"]
[Round "4.70"]
[White "De Silva, L M S T.."]
[Black "Lwebuga, Ronald"]
[Result "1-0"]
[WhiteElo "2212"]
[BlackElo "1818"]
[Annotator "NA RC"]
[PlyCount "51"]
[EventDate "2022.??.??"]
[TimeControl "60"]

1. e4 {[%emt 0:00:06]} c5 {[%emt 0:00:05]} 2. Nf3 {[%emt 0:00:19]} d6 {[%emt 0:
00:00]} 3. Bb5+ {[%emt 0:00:32]} Bd7 {[%emt 0:00:11]} 4. Bxd7+ {[%emt 0:00:20]}
Nxd7 {[%emt 0:00:14]} 5. O-O {[%emt 0:00:57]} Ngf6 {[%emt 0:00:13]} 6. Qe2 {
[%emt 0:00:24]} g6 {[%emt 0:00:17]} 7. c3 {[%emt 0:00:30]} Bg7 {[%emt 0:00:37]}
8. d4 {[%emt 0:00:22]} cxd4 {[%emt 0:00:19]} 9. cxd4 {[%emt 0:00:09]} O-O {
[%emt 0:00:33]} 10. Nc3 {[%emt 0:01:27]} Ne8 {[%emt 0:02:58]} 11. e5 {[%emt 0:
00:00]} dxe5 {[%emt 0:00:08]} 12. dxe5 {[%emt 0:00:36]} Nc7 {[%emt 0:00:33]}
13. Rd1 {[%emt 0:02:36]} Qc8 {[%emt 0:01:53]} 14. Bg5 {[%emt 0:06:44]} Re8 {
[%emt 0:00:20]} 15. Rac1 {[%emt 0:02:08]} Nb8 {[%emt 0:03:31]} 16. b4 {[%emt 0:
00:00]} Qg4 {[%emt 0:05:50]} 17. Ne4 {[%emt 0:04:57]} Ne6 {[%emt 0:08:22]} 18.
Rc4 {[%emt 0:02:56]} Nf4 {[%emt 0:16:41]} 19. Bxf4 {[%emt 0:00:45]} Nc6 {
[%emt 0:00:58]} 20. h3 {[%emt 0:02:03]} Qe6 {[%emt 0:04:36]} 21. Nfg5 {[%emt 0:
00:00]} Qf5 {[%emt 0:01:39]} 22. Ng3 {[%emt 0:00:25]} Qc8 {[%emt 0:04:02]} 23.
b5 {[%emt 0:00:20]} h6 {[%emt 0:00:07]} 24. Nf3 {[%emt 0:00:39]} g5 {[%emt 0:
00:00]} 25. Bc1 {[%emt 0:01:02]} g4 {[%emt 0:00:41]} 26. hxg4 {[%emt 0:00:21]}
1-0

[Event "44th Chess Olympiad Open 2022"]
[Site "Chennai"]
[Date "2022.08.01"]
[Round "4.70"]
[White "Winston Gerald, Mansfield Thomas"]
[Black "Alahakoon, Isuru"]
[Result "1/2-1/2"]
[WhiteElo "1832"]
[BlackElo "2000"]
[Annotator "NA RC"]
[PlyCount "120"]
[EventDate "2022.??.??"]
[TimeControl "60"]

1. d4 {[%emt 0:00:03]} d5 {[%emt 0:01:30]} 2. Nf3 {[%emt 0:00:06]} Nf6 {
[%emt 0:00:43]} 3. Bf4 {[%emt 0:00:26]} e6 {[%emt 0:00:19]} 4. e3 {[%emt 0:00:
00]} c5 {[%emt 0:00:09]} 5. c3 {[%emt 0:00:24]} Nc6 {[%emt 0:00:13]} 6. Nbd2 {
[%emt 0:00:38]} cxd4 {[%emt 0:00:17]} 7. exd4 {[%emt 0:00:10]} Nh5 {[%emt 0:00:
00]} 8. Be3 {[%emt 0:02:58]} Bd6 {[%emt 0:09:52]} 9. Ne5 {[%emt 0:01:05]} g6 {
[%emt 0:00:51]} 10. Ndf3 {[%emt 0:01:58]} O-O {[%emt 0:01:09]} 11. Bh6 {
[%emt 0:02:10]} Ng7 {[%emt 0:00:57]} 12. h4 {[%emt 0:03:33]} f6 {[%emt 0:01:22]
} 13. Nxc6 {[%emt 0:00:30]} bxc6 {[%emt 0:00:06]} 14. h5 {[%emt 0:01:41]} g5 {
[%emt 0:01:36]} 15. Qd2 {[%emt 0:01:34]} Re8 {[%emt 0:04:01]} 16. Bxg7 {
[%emt 0:03:51]} Kxg7 {[%emt 0:00:07]} 17. g3 {[%emt 0:02:18]} e5 {[%emt 0:00:
00]} 18. dxe5 {[%emt 0:17:07]} Bg4 {[%emt 0:01:16]} 19. Be2 {[%emt 0:01:07]}
Bxe5 {[%emt 0:00:12]} 20. Kf1 {[%emt 0:00:55]} Qd7 {[%emt 0:21:11]} 21. h6+ {
[%emt 0:01:44]} Kg8 {[%emt 0:00:55]} 22. Kg2 {[%emt 0:01:08]} Qf5 {[%emt 0:00:
00]} 23. Nd4 {[%emt 0:01:18]} Bxd4 {[%emt 0:04:06]} 24. Bxg4 {[%emt 0:00:07]}
Qxg4 {[%emt 0:00:07]} 25. Qxd4 {[%emt 0:00:13]} Qxd4 {[%emt 0:00:17]} 26. cxd4
{[%emt 0:00:06]} Re2 {[%emt 0:00:08]} 27. Rhc1 {[%emt 0:00:28]} Rc8 {[%emt 0:
00:00]} 28. b4 {[%emt 0:00:27]} Re4 {[%emt 0:04:09]} 29. Rd1 {[%emt 0:00:39]}
Kf7 {[%emt 0:02:16]} 30. Rac1 {[%emt 0:00:19]} Ke6 {[%emt 0:01:25]} 31. Rc2 {
[%emt 0:01:00]} Kd7 {[%emt 0:01:27]} 32. a3 {[%emt 0:00:49]} Rce8 {[%emt 0:00:
00]} 33. Rc5 {[%emt 0:00:59]} Rb8 {[%emt 0:01:43]} 34. Ra5 {[%emt 0:01:07]} Rb7
{[%emt 0:00:09]} 35. Rd2 {[%emt 0:03:28]} f5 {[%emt 0:00:23]} 36. f3 {[%emt 0:
00:00]} Re6 {[%emt 0:00:04]} 37. a4 {[%emt 0:01:54]} Rxh6 {[%emt 0:00:19]} 38.
b5 {[%emt 0:00:41]} cxb5 {[%emt 0:00:29]} 39. axb5 {[%emt 0:00:17]} Rhb6 {
[%emt 0:02:15]} 40. Rda2 {[%emt 0:00:40]} Rxb5 {[%emt 0:01:52]} 41. Rxb5 {
[%emt 0:30:33]} Rxb5 {[%emt 0:30:06]} 42. Rxa7+ {[%emt 0:00:05]} Ke6 {[%emt 0:
00:00]} 43. Rxh7 {[%emt 0:00:23]} Rb2+ {[%emt 0:00:43]} 44. Kh3 {[%emt 0:00:44]
} Rd2 {[%emt 0:00:00]} 45. Rh6+ {[%emt 0:00:00]} Kf7 {[%emt 0:00:00]} 46. f4 {
[%emt 0:00:00]} gxf4 {[%emt 0:00:00]} 47. gxf4 {[%emt 0:00:00]} Rxd4 {[%emt 0:
00:00]} 48. Kh4 {[%emt 0:00:00]} Rxf4+ {[%emt 0:00:00]} 49. Kg5 {[%emt 0:00:00]
} Rf2 {[%emt 0:05:46]} 50. Rd6 {[%emt 0:00:00]} Rd2 {[%emt 0:00:09]} 51. Kxf5 {
[%emt 0:00:00]} Ke7 {[%emt 0:00:03]} 52. Ra6 {[%emt 0:00:00]} Re2 {[%emt 0:00:
00]} 53. Kf4 {[%emt 0:00:00]} Kd7 {[%emt 0:01:31]} 54. Kf3 {[%emt 0:00:00]} Re1
{[%emt 0:00:16]} 55. Kf2 {[%emt 0:00:00]} Re4 {[%emt 0:00:20]} 56. Kf3 {
[%emt 0:00:00]} Re5 {[%emt 0:00:12]} 57. Kf4 {[%emt 0:00:00]} Re8 {[%emt 0:00:
00]} 58. Kf3 {[%emt 0:00:00]} Kc7 {[%emt 0:00:14]} 59. Kf4 {[%emt 0:00:00]} Kb7
{[%emt 0:00:27]} 60. Rd6 {[%emt 0:00:00]} Kc7 {[%emt 0:00:18]} 1/2-1/2

[Event "44th Chess Olympiad Open 2022"]
[Site "Chennai"]
[Date "2022.08.01"]
[Round "4.70"]
[White "Kiriella, K G T S D.."]
[Black "Kamara, Ansumana"]
[Result "1-0"]
[WhiteElo "1781"]
[BlackElo "1896"]
[Annotator "NA RC"]
[PlyCount "87"]
[EventDate "2022.??.??"]
[TimeControl "60"]

1. e4 {[%emt 0:00:02]} c5 {[%emt 0:00:07]} 2. Nf3 {[%emt 0:00:04]} d6 {[%emt 0:
00:00]} 3. d4 {[%emt 0:00:05]} cxd4 {[%emt 0:00:09]} 4. Nxd4 {[%emt 0:00:04]}
Nf6 {[%emt 0:00:11]} 5. Nc3 {[%emt 0:00:06]} a6 {[%emt 0:00:21]} 6. Be3 {
[%emt 0:00:06]} e5 {[%emt 0:00:26]} 7. Nf3 {[%emt 0:00:05]} h6 {[%emt 0:00:51]}
8. Bc4 {[%emt 0:00:23]} Qc7 {[%emt 0:00:36]} 9. Bb3 {[%emt 0:01:14]} Be7 {
[%emt 0:00:22]} 10. a4 {[%emt 0:05:03]} Nbd7 {[%emt 0:02:01]} 11. a5 {[%emt 0:
00:00]} O-O {[%emt 0:00:43]} 12. Nd5 {[%emt 0:02:47]} Nxd5 {[%emt 0:00:31]} 13.
Bxd5 {[%emt 0:00:06]} Nf6 {[%emt 0:00:46]} 14. Bb6 {[%emt 0:02:07]} Qd7 {
[%emt 0:00:24]} 15. Nd2 {[%emt 0:04:23]} Nxd5 {[%emt 0:01:35]} 16. exd5 {
[%emt 0:00:04]} Qb5 {[%emt 0:00:55]} 17. c4 {[%emt 0:06:27]} Qxb2 {[%emt 0:00:
00]} 18. Rb1 {[%emt 0:08:53]} Qa3 {[%emt 0:00:37]} 19. O-O {[%emt 0:01:49]} Bf5
{[%emt 0:00:50]} 20. Rb3 {[%emt 0:05:23]} Qa4 {[%emt 0:00:29]} 21. f4 {[%emt 0:
00:00]} exf4 {[%emt 0:01:02]} 22. Rxf4 {[%emt 0:04:35]} Bg6 {[%emt 0:00:30]}
23. h4 {[%emt 0:04:04]} Rac8 {[%emt 0:01:05]} 24. Kh2 {[%emt 0:11:19]} Bf6 {
[%emt 0:01:23]} 25. Rxf6 {[%emt 0:00:56]} gxf6 {[%emt 0:00:00]} 26. h5 {
[%emt 0:00:07]} Bf5 {[%emt 0:00:55]} 27. Rg3+ {[%emt 0:00:06]} Kh7 {[%emt 0:00:
00]} 28. Qxa4 {[%emt 0:00:05]} Rfe8 {[%emt 0:00:18]} 29. Bd4 {[%emt 0:00:56]}
Re2 {[%emt 0:03:53]} 30. Qd1 {[%emt 0:01:01]} Rce8 {[%emt 0:00:44]} 31. Bxf6 {
[%emt 0:00:29]} Rf2 {[%emt 0:07:06]} 32. Rg7+ {[%emt 0:00:33]} Kh8 {[%emt 0:00:
00]} 33. Rg5+ {[%emt 0:00:05]} Kh7 {[%emt 0:01:49]} 34. Rxf5 {[%emt 0:00:08]}
Rfe2 {[%emt 0:01:15]} 35. Bd4 {[%emt 0:00:22]} Kg8 {[%emt 0:00:54]} 36. Rf2 {
[%emt 0:00:12]} Rxf2 {[%emt 0:03:08]} 37. Bxf2 {[%emt 0:00:06]} Re5 {[%emt 0:
00:00]} 38. Bh4 {[%emt 0:00:28]} Kf8 {[%emt 0:01:14]} 39. Qg4 {[%emt 0:00:10]}
f5 {[%emt 0:00:41]} 40. Qg6 {[%emt 0:00:11]} f4 {[%emt 0:00:41]} 41. Qxd6+ {
[%emt 0:30:07]} Kf7 {[%emt 0:31:26]} 42. Qxe5 {[%emt 0:00:06]} b5 {[%emt 0:00:
00]} 43. Qe7+ {[%emt 0:00:06]} Kg8 {[%emt 0:00:25]} 44. Bf6 {[%emt 0:00:04]}
1-0

[Event "44th Chess Olympiad Open 2022"]
[Site "Chennai"]
[Date "2022.08.01"]
[Round "4.70"]
[White "Adeshole Beckley, Brian"]
[Black "Nabil Nazar, Mohamed"]
[Result "0-1"]
[WhiteElo "1590"]
[BlackElo "1845"]
[Annotator "NA RC"]
[PlyCount "62"]
[EventDate "2022.??.??"]
[TimeControl "60"]

1. d4 {[%emt 0:00:03]} d5 {[%emt 0:00:07]} 2. c4 {[%emt 0:00:05]} e6 {[%emt 0:
00:00]} 3. Nc3 {[%emt 0:00:16]} a6 {[%emt 0:00:12]} 4. Nf3 {[%emt 0:00:39]} Nf6
{[%emt 0:00:02]} 5. cxd5 {[%emt 0:00:38]} exd5 {[%emt 0:00:04]} 6. Bg5 {
[%emt 0:00:13]} c6 {[%emt 0:00:26]} 7. e3 {[%emt 0:01:19]} Bf5 {[%emt 0:00:07]}
8. Bd3 {[%emt 0:00:35]} Bxd3 {[%emt 0:00:03]} 9. Qxd3 {[%emt 0:00:10]} Be7 {
[%emt 0:00:23]} 10. O-O {[%emt 0:00:22]} O-O {[%emt 0:00:04]} 11. Rfe1 {
[%emt 0:02:51]} Ne4 {[%emt 0:00:09]} 12. Bxe7 {[%emt 0:00:19]} Qxe7 {[%emt 0:
00:00]} 13. Rab1 {[%emt 0:04:56]} Nd7 {[%emt 0:01:11]} 14. b4 {[%emt 0:00:31]}
b5 {[%emt 0:00:04]} 15. a4 {[%emt 0:02:29]} Nb6 {[%emt 0:03:03]} 16. Ne5 {
[%emt 0:02:00]} Rfc8 {[%emt 0:00:37]} 17. a5 {[%emt 0:07:47]} Nc4 {[%emt 0:00:
00]} 18. Nxe4 {[%emt 0:16:13]} dxe4 {[%emt 0:00:13]} 19. Qc3 {[%emt 0:01:12]}
Nxe5 {[%emt 0:01:18]} 20. dxe5 {[%emt 0:00:21]} c5 {[%emt 0:00:00]} 21. Rbc1 {
[%emt 0:03:27]} c4 {[%emt 0:01:06]} 22. f4 {[%emt 0:04:10]} Rd8 {[%emt 0:02:33]
} 23. Rcd1 {[%emt 0:00:48]} Rd3 {[%emt 0:01:43]} 24. Rxd3 {[%emt 0:01:17]} exd3
{[%emt 0:00:05]} 25. g3 {[%emt 0:00:58]} Rd8 {[%emt 0:00:31]} 26. Rd1 {[%emt 0:
00:00]} f6 {[%emt 0:00:08]} 27. Rd2 {[%emt 0:11:59]} fxe5 {[%emt 0:00:13]} 28.
fxe5 {[%emt 0:00:15]} Qa7 {[%emt 0:00:56]} 29. Kg2 {[%emt 0:07:01]} Qxe3 {
[%emt 0:00:14]} 30. Rf2 {[%emt 0:00:47]} Qxf2+ {[%emt 0:00:25]} 31. Kxf2 {
[%emt 0:00:16]} d2 {[%emt 0:00:03]} 0-1

[Event "44th Chess Olympiad Open 2022"]
[Site "Chennai"]
[Date "2022.08.01"]
[Round "4.71"]
[White "Kovacova, Zuzana"]
[Black "Oatlhotse, Providence"]
[Result "0-1"]
[WhiteElo "2050"]
[BlackElo "2204"]
[Annotator "NA RC"]
[PlyCount "76"]
[EventDate "2022.??.??"]
[TimeControl "60"]

1. e4 {[%emt 0:00:04]} g6 {[%emt 0:00:06]} 2. Nc3 {[%emt 0:00:05]} Bg7 {
[%emt 0:00:07]} 3. g3 {[%emt 0:00:04]} c5 {[%emt 0:00:10]} 4. Bg2 {[%emt 0:00:
00]} Nc6 {[%emt 0:00:02]} 5. d3 {[%emt 0:00:22]} d6 {[%emt 0:00:33]} 6. Be3 {
[%emt 0:00:22]} Nf6 {[%emt 0:00:28]} 7. h3 {[%emt 0:00:36]} O-O {[%emt 0:00:17]
} 8. Qd2 {[%emt 0:01:25]} Nd4 {[%emt 0:00:39]} 9. Nd1 {[%emt 0:00:34]} e5 {
[%emt 0:00:54]} 10. c3 {[%emt 0:00:32]} Nc6 {[%emt 0:01:54]} 11. Ne2 {[%emt 0:
00:00]} b5 {[%emt 0:00:30]} 12. O-O {[%emt 0:03:02]} a5 {[%emt 0:03:22]} 13. d4
{[%emt 0:07:16]} Qe7 {[%emt 0:03:17]} 14. d5 {[%emt 0:01:04]} Nb8 {[%emt 0:00:
00]} 15. a4 {[%emt 0:03:27]} bxa4 {[%emt 0:03:10]} 16. Rxa4 {[%emt 0:00:24]}
Nbd7 {[%emt 0:00:03]} 17. Bh6 {[%emt 0:07:48]} Nb6 {[%emt 0:08:08]} 18. Bxg7 {
[%emt 0:04:43]} Kxg7 {[%emt 0:00:25]} 19. Ra1 {[%emt 0:00:51]} Ba6 {[%emt 0:00:
00]} 20. Re1 {[%emt 0:00:47]} a4 {[%emt 0:01:44]} 21. Qc2 {[%emt 0:04:29]} Bc4
{[%emt 0:02:58]} 22. Ne3 {[%emt 0:05:36]} Bb3 {[%emt 0:00:38]} 23. Qb1 {
[%emt 0:03:18]} Rfb8 {[%emt 0:01:49]} 24. Nc1 {[%emt 0:05:12]} Qc7 {[%emt 0:00:
00]} 25. Bf1 {[%emt 0:04:07]} c4 {[%emt 0:05:04]} 26. Na2 {[%emt 0:05:31]} a3 {
[%emt 0:05:01]} 27. bxa3 {[%emt 0:11:23]} Rxa3 {[%emt 0:33:51]} 28. Nb4 {
[%emt 0:06:18]} Rxa1 {[%emt 0:00:22]} 29. Qxa1 {[%emt 0:00:04]} Ra8 {[%emt 0:
00:00]} 30. Qb1 {[%emt 0:01:12]} Na4 {[%emt 0:00:45]} 31. Rc1 {[%emt 0:04:00]}
Nc5 {[%emt 0:03:28]} 32. Bg2 {[%emt 0:02:41]} Qa5 {[%emt 0:01:24]} 33. Re1 {
[%emt 0:06:42]} Qa3 {[%emt 0:02:05]} 34. Nec2 {[%emt 0:05:42]} Bxc2 {[%emt 0:
00:00]} 35. Qxc2 {[%emt 0:00:02]} Qb3 {[%emt 0:00:16]} 36. Qd2 {[%emt 0:03:36]}
Ra3 {[%emt 0:00:32]} 37. Re3 {[%emt 0:00:30]} Ra1+ {[%emt 0:01:57]} 38. Re1 {
[%emt 0:00:36]} Ncxe4 {[%emt 0:01:47]} 0-1

[Event "44th Chess Olympiad Open 2022"]
[Site "Chennai"]
[Date "2022.08.01"]
[Round "4.71"]
[White "Rongwane, Gomolemo"]
[Black "Faulks, Nick"]
[Result "1-0"]
[WhiteElo "2033"]
[BlackElo "1820"]
[Annotator "NA RC"]
[PlyCount "65"]
[EventDate "2022.??.??"]
[TimeControl "60"]

1. d4 {[%emt 0:00:05]} Nf6 {[%emt 0:00:06]} 2. Nf3 {[%emt 0:00:11]} c5 {
[%emt 0:00:07]} 3. e3 {[%emt 0:00:22]} g6 {[%emt 0:00:37]} 4. Bd3 {[%emt 0:00:
00]} Bg7 {[%emt 0:01:15]} 5. O-O {[%emt 0:00:18]} O-O {[%emt 0:00:32]} 6. c3 {
[%emt 0:00:39]} b6 {[%emt 0:03:42]} 7. Qe2 {[%emt 0:04:16]} Bb7 {[%emt 0:01:04]
} 8. e4 {[%emt 0:02:29]} d6 {[%emt 0:06:33]} 9. Rd1 {[%emt 0:02:06]} cxd4 {
[%emt 0:03:28]} 10. cxd4 {[%emt 0:00:51]} Nc6 {[%emt 0:15:39]} 11. Nc3 {
[%emt 0:04:13]} Nd7 {[%emt 0:09:35]} 12. Be3 {[%emt 0:06:25]} e6 {[%emt 0:00:
00]} 13. a3 {[%emt 0:02:20]} Qe7 {[%emt 0:02:19]} 14. Rac1 {[%emt 0:01:11]} a6
{[%emt 0:04:35]} 15. b4 {[%emt 0:02:32]} b5 {[%emt 0:01:10]} 16. Bb1 {[%emt 0:
00:00]} Rac8 {[%emt 0:01:18]} 17. Bg5 {[%emt 0:00:41]} Bf6 {[%emt 0:01:11]} 18.
Bh6 {[%emt 0:00:30]} Bg7 {[%emt 0:00:26]} 19. Qe3 {[%emt 0:02:55]} Rfd8 {
[%emt 0:03:37]} 20. Ba2 {[%emt 0:03:36]} Nf8 {[%emt 0:03:34]} 21. Bxg7 {
[%emt 0:02:42]} Kxg7 {[%emt 0:00:16]} 22. h4 {[%emt 0:01:16]} Qf6 {[%emt 0:00:
00]} 23. Ne2 {[%emt 0:11:21]} Ne7 {[%emt 0:03:16]} 24. Ng3 {[%emt 0:00:38]} Ng8
{[%emt 0:01:08]} 25. Ng5 {[%emt 0:12:27]} Nh6 {[%emt 0:02:11]} 26. e5 {[%emt 0:
00:00]} Qe7 {[%emt 0:01:58]} 27. Qf4 {[%emt 0:02:57]} Bd5 {[%emt 0:03:49]} 28.
Rxc8 {[%emt 0:04:59]} Rxc8 {[%emt 0:00:15]} 29. Bxd5 {[%emt 0:00:12]} exd5 {
[%emt 0:00:13]} 30. exd6 {[%emt 0:00:40]} Qd7 {[%emt 0:02:22]} 31. Re1 {
[%emt 0:00:59]} Rc6 {[%emt 0:02:06]} 32. Nxf7 {[%emt 0:06:45]} Ne6 {[%emt 0:00:
00]} 33. Qxh6+ {[%emt 0:01:07]} 1-0

[Event "44th Chess Olympiad Open 2022"]
[Site "Chennai"]
[Date "2022.08.01"]
[Round "4.71"]
[White "Sabure, Bojosi"]
[Black "Walrond, Niccolo"]
[Result "1-0"]
[WhiteElo "1966"]
[BlackElo "1210"]
[Annotator "NA RC"]
[PlyCount "31"]
[EventDate "2022.??.??"]
[TimeControl "60"]

1. e4 {[%emt 0:00:03]} Nf6 {[%emt 0:00:15]} 2. e5 {[%emt 0:01:39]} Nd5 {
[%emt 0:00:08]} 3. Bc4 {[%emt 0:00:34]} Nb6 {[%emt 0:00:49]} 4. Bb3 {[%emt 0:
00:00]} d6 {[%emt 0:02:17]} 5. Nf3 {[%emt 0:00:58]} Bg4 {[%emt 0:02:42]} 6.
Bxf7+ {[%emt 0:00:46]} Kxf7 {[%emt 0:12:28]} 7. Ng5+ {[%emt 0:00:07]} Ke8 {
[%emt 0:02:46]} 8. Qxg4 {[%emt 0:00:09]} dxe5 {[%emt 0:00:46]} 9. Nxh7 {
[%emt 0:00:32]} Nc6 {[%emt 0:04:14]} 10. Nc3 {[%emt 0:03:47]} Qd7 {[%emt 0:00:
00]} 11. Qg6+ {[%emt 0:03:03]} Kd8 {[%emt 0:00:32]} 12. O-O {[%emt 0:01:17]} e6
{[%emt 0:03:16]} 13. Ng5 {[%emt 0:00:50]} Ke7 {[%emt 0:08:36]} 14. d3 {[%emt 0:
00:00]} Re8 {[%emt 0:02:40]} 15. Nf7 {[%emt 0:00:19]} Rg8 {[%emt 0:03:54]} 16.
Bg5# {[%emt 0:00:16]} 1-0

[Event "44th Chess Olympiad Open 2022"]
[Site "Chennai"]
[Date "2022.08.01"]
[Round "4.71"]
[White "Gontcharov, Serguei"]
[Black "Oratile, Kgotlane"]
[Result "1/2-1/2"]
[WhiteElo "1864"]
[BlackElo "2024"]
[Annotator "NA RC"]
[PlyCount "66"]
[EventDate "2022.??.??"]
[TimeControl "60"]

1. e4 {[%emt 0:00:03]} c5 {[%emt 0:00:08]} 2. Nf3 {[%emt 0:00:07]} g6 {[%emt 0:
00:00]} 3. d4 {[%emt 0:00:06]} cxd4 {[%emt 0:00:11]} 4. Nxd4 {[%emt 0:00:05]}
Bg7 {[%emt 0:00:10]} 5. Be3 {[%emt 0:01:54]} Nc6 {[%emt 0:00:07]} 6. c4 {
[%emt 0:00:26]} Nf6 {[%emt 0:00:18]} 7. Nc3 {[%emt 0:00:22]} O-O {[%emt 0:00:
00]} 8. Be2 {[%emt 0:00:58]} d6 {[%emt 0:00:08]} 9. O-O {[%emt 0:00:29]} Bd7 {
[%emt 0:00:06]} 10. Nb3 {[%emt 0:00:18]} b6 {[%emt 0:05:34]} 11. f3 {[%emt 0:
00:00]} Rc8 {[%emt 0:01:11]} 12. Rc1 {[%emt 0:01:02]} Be6 {[%emt 0:09:44]} 13.
Nd2 {[%emt 0:10:57]} Nd7 {[%emt 0:00:00]} 14. a3 {[%emt 0:00:54]} Nd4 {[%emt 0:
00:00]} 15. b3 {[%emt 0:05:02]} Nc5 {[%emt 0:05:40]} 16. b4 {[%emt 0:04:02]}
Nxe2+ {[%emt 0:18:14]} 17. Qxe2 {[%emt 0:00:29]} Nb3 {[%emt 0:06:04]} 18. Nxb3
{[%emt 0:02:53]} Bxc4 {[%emt 0:00:09]} 19. Qb2 {[%emt 0:00:19]} Bxf1 {[%emt 0:
00:00]} 20. Kxf1 {[%emt 0:00:09]} Qc7 {[%emt 0:02:56]} 21. Bd2 {[%emt 0:03:29]}
Qc4+ {[%emt 0:01:22]} 22. Kg1 {[%emt 0:00:39]} Rc7 {[%emt 0:04:08]} 23. Qb1 {
[%emt 0:01:56]} Rfc8 {[%emt 0:00:21]} 24. h3 {[%emt 0:19:04]} Qe6 {[%emt 0:00:
00]} 25. Nd5 {[%emt 0:03:37]} Rxc1+ {[%emt 0:00:23]} 26. Bxc1 {[%emt 0:00:18]}
Qd7 {[%emt 0:01:10]} 27. Bg5 {[%emt 0:01:35]} f6 {[%emt 0:00:13]} 28. Be3 {
[%emt 0:00:29]} e6 {[%emt 0:01:40]} 29. Nf4 {[%emt 0:00:16]} Kf7 {[%emt 0:00:
00]} 30. Qd3 {[%emt 0:03:13]} f5 {[%emt 0:06:47]} 31. exf5 {[%emt 0:03:09]}
gxf5 {[%emt 0:02:04]} 32. Bd2 {[%emt 0:02:12]} d5 {[%emt 0:06:45]} 33. g4 {
[%emt 0:08:31]} d4 {[%emt 0:07:10]} 1/2-1/2